[Event "Sautron op 13th"]
[Site "Sautron"]
[Date "2013.11.01"]
[Round "8"]
[White "Terrieux, Kevin"]
[Black "Lagarde, Maxime"]
[Result "1/2-1/2"]
[ECO "A88"]
[WhiteElo "2415"]
[BlackElo "2523"]
[Annotator "RR"]
[PlyCount "89"]
[EventDate "2013.10.26"]
[EventType "swiss"]
[EventRounds "9"]
[EventCountry "FRA"]
[SourceTitle "EXT 2016"]
[Source "ChessBase"]
[SourceDate "2015.10.08"]
[SourceVersion "1"]
[SourceVersionDate "2015.10.08"]
[SourceQuality "1"]
[TimeControl "40/5400+30:1800+30"]
[WhiteClock "1:30:00"]
[BlackClock "1:30:00"]

1. d4 {[%emt 0:00:00]} f5 {[%emt 0:05:54] Avec un mauvais départage, le GMI
doit jouer pour le gain} 2. g3 {[%emt 0:02:04]} Nf6 {[%emt 0:00:40]} 3. Bg2 {
[%emt 0:00:13]} d6 {[%emt 0:04:06]} (3... e6 4. c4 c6 5. Nf3 d5 6. O-O Bd6 7.
Qc2 O-O 8. Nc3 Ne4 (8... dxc4 9. e4 $13) (8... Bd7 9. Rb1 Be8 10. Ng5 Qd7 11.
Qb3 Bh5 12. Re1 Na6 13. c5 Be7 14. Nf3 b6 15. Ne5 Qb7 16. Bf4 $14) 9. Rb1 Qe7 (
9... Nd7 10. b4 Nxc3 11. Qxc3 b5 12. Bg5 $14) 10. b4 Bd7 11. b5 Nxc3 12. Qxc3
$14) (3... g6) 4. Nf3 {[%emt 0:01:15]} g6 {[%emt 0:00:15]} 5. O-O {[%emt 0:00:
42]} (5. b3 Bg7 6. Bb2 $14 {[%csl Ge5]}) 5... Bg7 {[%emt 0:00:04]} 6. c4 {
[%emt 0:00:40]} O-O {[%emt 0:00:10]} 7. Nc3 {[%emt 0:00:24]} c6 {[%emt 0:00:09]
} 8. d5 {[%emt 0:00:42]} e5 {[%emt 0:00:10]} 9. dxe6 {[%emt 0:00:31]} Bxe6 {
[%emt 0:00:04]} 10. b3 {[%emt 0:01:33]} (10. Qd3) 10... Ne4 {[%emt 0:00:11]}
11. Nxe4 $1 {[%emt 0:00:28]} (11. Nd4 Bf7 12. Rb1 Re8 13. Bb2 Nd7 14. Nc2 Ndf6
15. Ne3 a5 16. a4 Qe7 17. Qd2 Red8 18. Rfd1 d5 19. cxd5 Bxd5 20. Ncxd5 Nxd5 {
1-0 (20) Agdestein,S (2570)-Nakamura,H (2741) Oslo 2010}) 11... fxe4 {[%emt 0:
00:08]} (11... Bxa1 12. Nxd6 Qd7 13. Ng5 $44 {Plaskett,J (2440)-Vincent,S 
(2200) Paris op 1983 (3) 1-0}) 12. Nd4 {[%emt 0:01:34]} Bf7 {[%emt 0:00:52]}
13. Bxe4 {[%emt 0:02:19]} d5 $146 {[%emt 0:22:24]} (13... Qe7 14. Bg2 c5 15.
Nc2 Bxa1 16. Nxa1 Nc6 17. Nc2 Qe5 18. Qd2 Rae8 19. e3 a6 20. f4 Qf6 21. Ne1 Qe7
22. Nd3 Be6 23. Nf2 Rd8 24. Bb2 Kf7 25. Ne4 Ke8 26. Rd1 Bg4 27. Rc1 Be6 28. Nc3
Rd7 29. Nd5 Qd8 30. Rd1 Bg4 31. Re1 Be6 32. e4 Nd4 33. b4 Kf7 34. Bxd4 Bxd5 35.
cxd5 cxd4 36. Bh3 Rc7 37. Qxd4 Qe7 38. Be6+ Ke8 39. a4 Rf6 40. e5 Rxe6 41. dxe6
dxe5 42. Rxe5 {1-0 (42) Masarik,D (2337)-Chiricuta,M (2204) ICCF email 2010})
14. cxd5 {[%emt 0:11:42]} Re8 {[%emt 0:07:36]} 15. Bf3 {[%emt 0:05:59]} Bxd5 {
[%emt 0:00:27]} 16. Rb1 {[%emt 0:13:19]} Na6 {[%emt 0:03:38]} 17. Bb2 {[%emt 0:
07:42]} Nc5 {[%emt 0:03:57]} 18. e3 {[%emt 0:10:32]} Ne4 {[%emt 0:04:21]} 19.
Bg2 {[%emt 0:02:55]} Qa5 {[%emt 0:05:50]} 20. a3 {[%emt 0:09:36]} Rad8 $132 {
[%emt 0:02:55] Les pièces Noires sont trés actives} 21. b4 {[%emt 0:01:40]}
Qb6 {[%emt 0:07:01]} 22. Qc2 {[%emt 0:00:48]} a5 {[%emt 0:00:48]} 23. Nf3 {
[%emt 0:00:46]} (23. Ne2 {[%csl Rg8][%cal Gb2g7]} Bxb2 24. Rxb2) 23... Bxb2 {
[%emt 0:05:27]} 24. Rxb2 {[%emt 0:02:12]} axb4 {[%emt 0:00:53]} 25. axb4 {
[%emt 0:02:08]} Nd6 {[%emt 0:02:13]} 26. Nd2 {[%emt 0:01:48]} Qb5 {[%emt 0:07:
09]} 27. Bxd5+ {[%emt 0:01:03]} cxd5 {[%emt 0:00:18]} 28. Qc5 {[%emt 0:02:56]}
Qd3 {[%emt 0:00:35]} 29. Qc2 {[%emt 0:00:06]} Qb5 {[%emt 0:00:41]} 30. Qb3 {
[%emt 0:04:13]} Rc8 {[%emt 0:03:45]} 31. Rd1 {[%emt 0:00:59]} Red8 {[%emt 0:06:
57]} 32. Ra2 {[%emt 0:01:48]} Nc4 {[%emt 0:00:57]} 33. Rc2 {[%emt 0:02:01]} (
33. Nf3 {[%cal Gf3d4]}) 33... Ne5 {[%emt 0:02:43]} 34. Rxc8 {[%emt 0:04:33]}
Rxc8 {[%emt 0:00:01]} 35. e4 {[%emt 0:00:09]} Rd8 {[%emt 0:01:37]} 36. Nf3 {
[%emt 0:05:16]} Nxf3+ {[%emt 0:01:35]} 37. Qxf3 {[%emt 0:00:02]} Qxb4 {[%emt 0:
01:27]} 38. exd5 {[%emt 0:00:08]} Qd6 {[%emt 0:00:17]} 39. h4 {[%emt 0:00:38]}
b5 {[%emt 0:00:33]} 40. Qb3 {[%emt 0:00:00]} (40. h5) 40... b4 {[%emt 0:00:00]}
41. h5 {[%emt 0:07:14]} gxh5 {[%emt 0:02:23]} 42. Rd4 {[%emt 0:00:14]} Rb8 {
[%emt 0:03:29]} 43. Rf4 {[%emt 0:00:30]} Rd8 {[%emt 0:00:56]} 44. Rf5 {[%emt 0:
01:10]} Rf8 {[%emt 0:04:43]} 45. Rxh5 {[%emt 0:16:44]} 1/2-1/2